bitfinex-derivatives/quotes_SOLF0:USTF0_20251222
["timestamp","ask_amount","ask_price","bid_price","bid_amount"]
[1766404321762,1.14,127.19,127.12,3.27003423]
[1766404322059,1.19,127.21,127.15,3.21]
[1766404322266,93.63,127.23,127.15,3.21]
[1766404322653,0.05702683,127.2,127.18,0.05521685]
[1766404324867,1.24702683,127.2,127.12,3.21]
[1766404325056,1.19,127.2,127.12,3.21]
[1766404325262,3.41720345,127.19,127.12,3.21]
[1766404325657,8.2095,127.18,127.12,3.21]
[1766404325968,0.05895231,127.16,127.14,0.0023686]
[1766404326967,1.13895231,127.16,127.09,3.3]
[1766404327752,8.21965231,127.16,127.09,3.3]
[1766404327955,3.36720345,127.15,127.11,0.05936085]
[1766404328254,0.05087789,127.14,127.11,0.05936085]
[1766404329075,1.13087789,127.14,127.06,3.3]
[1766404329255,1.02,127.12,127.04,3.3]
[1766404330068,0.05907194,127.09,127.07,0.05018365]
[1766404331454,0.05907194,127.09,127.07,0.00018365]
[1766404331761,0.05907194,127.09,127.02,3.3]
[1766404332260,0.97,127.13,127.05,3.3]
[1766404332657,3.31720345,127.16,127.07,3.3]
[1766404332863,1.03,127.16,127.07,3.3]
[1766404333267,0.05030089,127.13,127.1,0.05000303]
[1766404340175,1.03030089,127.13,127.07,3.3]
[1766404341080,1.03030089,127.13,127.09,0.05101192]
[1766404341467,1.03030089,127.13,127.05,3.3]
[1766404341669,0.98,127.13,127.05,3.3]
[1766404342577,0.05024208,127.1,127.08,0.05481191]
[1766404344173,0.00024208,127.1,127.08,0.05481191]
[1766404344981,0.98,127.15,127.08,10.43961191]
[1766404345179,8.0612,127.15,127.08,3.3]
[1766404345387,0.98,127.14,127.08,3.3]
[1766404346080,0.05749928,127.12,127.1,0.05296456]
[1766404350387,8.0609,127.16,127.1,0.05296456]
[1766404351084,1.04,127.15,127.1,0.05296456]
[1766404351386,0.04996793,127.14,127.1,0.05296456]
[1766404352882,93.52,127.17,127.11,3.52]
[1766404353082,2.28720345,127.19,127.11,3.52]
[1766404353083,1.09,127.19,127.11,3.52]
[1766404353573,1.09,127.19,127.09,110.1973]
[1766404353574,8.1689,127.19,127.12,10.6025]
[1766404353984,0.05519282,127.17,127.14,0.05994312]
[1766404355687,7.13529282,127.17,127.14,0.05994312]
[1766404355885,0.05519282,127.17,127.14,0.05994312]
[1766404359877,0.05519282,127.17,127.14,3.37994312]
[1766404360078,8.1683,127.2,127.14,3.37994312]
[1766404360988,0.05548865,127.18,127.14,3.37994312]
[1766404361688,92.54,127.21,127.16,10.4003]
[1766404361888,8.2762,127.24,127.17,3.32]
[1766404362380,1.2,127.23,127.17,3.32]
[1766404362686,0.04975113,127.21,127.19,0.04980518]
[1766404367194,0.04975113,127.21,127.16,7.0802]
[1766404367982,0.04975113,127.21,127.15,3.32]
[1766404368385,0.04975113,127.21,127.17,0.05980289]
[1766404369595,0.04975113,127.21,127.14,10.4012]
[1766404369596,1.15,127.2,127.14,10.4012]
[1766404370488,0.05173048,127.18,127.16,0.04985857]
[1766404376801,7.13113048,127.18,127.12,10.4022]
[1766404377010,2.50365576,127.17,127.08,3.32]
[1766404377600,0.05182165,127.14,127.11,0.05321715]
[1766404377996,0.05182165,127.14,127.11,3.37321715]
[1766404380505,0.05182165,127.14,127.11,0.05321715]
[1766404380694,0.00182165,127.14,127.11,3.37321715]
[1766404383005,0.00182165,127.14,127.11,10.45641715]
[1766404383405,100.6688,127.2,127.11,3.37321715]
[1766404383605,1.46365576,127.19,127.11,3.32]
[1766404384303,0.05912354,127.16,127.14,0.05013164]
[1766404390014,1.46365576,127.15,127.09,10.5838]
[1766404390713,1.46365576,127.13,127.09,3.5]
[1766404390907,1.52364769,127.13,127.11,0.05920187]
[1766404391097,1.52364769,127.13,127.09,3.5]
[1766404392107,1.52364769,127.13,127.1,0.0595363]
[1766404392503,0.05999193,127.13,127.1,0.0595363]
[1766404394715,1.52364769,127.13,127.1,0.0595363]
[1766404400722,1.09,127.12,127.07,7.085]
[1766404401519,1.09,127.12,127.08,0.05270805]
[1766404402822,0.05999193,127.13,127.08,3.55270805]
[1766404405615,0.05999193,127.13,127.08,10.63760805]
[1766404405926,0.05999193,127.13,127.09,3.5]
[1766404406310,0.05999193,127.13,127.09,10.5841]
[1766404407029,0.05999193,127.13,127.1,10.5837]
[1766404407325,92.52,127.15,127.1,10.5837]
[1766404408326,0.0586544,127.14,127.11,0.05043287]
[1766404424438,0.0586544,127.14,127.11,7.13373287]
[1766404428839,1.52231016,127.14,127.11,7.13373287]
[1766404429441,94.02365576,127.16,127.12,3.22]
[1766404429830,1.46365576,127.16,127.12,3.22]
[1766404430437,0.05436265,127.15,127.11,0.05043287]
[1766404430637,1.46365576,127.14,127.11,0.05043287]
[1766404435949,0.05436265,127.15,127.11,0.05043287]
[1766404438452,1.20436265,127.15,127.11,0.05043287]
[1766404440156,0.05436265,127.15,127.11,3.27043287]
[1766404441650,1.20436265,127.15,127.11,0.05043287]
[1766404442254,0.05436265,127.15,127.12,3.22]
[1766404445465,0.05436265,127.15,127.11,0.05043287]
[1766404446271,0.05436265,127.15,127.11,3.41043287]
[1766404446770,92.56,127.19,127.11,3.41043287]
[1766404446976,92.56,127.19,127.11,3.36]
[1766404447265,93.76,127.19,127.11,3.36]
[1766404447772,0.05054039,127.16,127.14,0.05236863]
[1766404448171,0.05054039,127.16,127.12,3.36]
[1766404449074,0.05054039,127.16,127.13,0.05303988]
[1766404464594,0.00054039,127.16,127.14,3.36]
[1766404465787,3.5386123,127.21,127.14,3.36]
[1766404466088,1.25,127.23,127.15,3.36]
[1766404466783,1.25,127.23,127.18,0.05408541]
[1766404466987,0.05469282,127.2,127.18,0.05408541]
[1766404469196,1.25,127.23,127.18,10.61338541]
[1766404470097,0.04962543,127.22,127.18,10.61338541]
[1766404470802,0.04962543,127.22,127.19,3.48]
[1766404471002,0.04962543,127.22,127.19,10.5588]
[1766404478907,92.56,127.24,127.19,10.5588]
[1766404480009,0.05624111,127.23,127.19,10.5588]
[1766404483996,1.25,127.27,127.21,3.48]
[1766404485109,0.05720539,127.25,127.23,0.05737369]
[1766404486406,1.35720539,127.25,127.19,10.5584]
[1766404486707,1.3,127.25,127.19,10.5584]
[1766404487305,1.3,127.25,127.21,0.05188199]
[1766404487610,0.05643761,127.23,127.21,0.05188199]
[1766404491111,0.05643761,127.23,127.19,3.48]
[1766404492107,0.05643761,127.23,127.2,0.05510189]
[1766404494524,1.35643761,127.23,127.16,7.0799]
[1766404494722,1.35643761,127.23,127.16,3.48]
[1766404494723,1.3,127.23,127.16,3.48]
[1766404495025,94.8086123,127.24,127.16,3.48]
[1766404495026,92.52,127.24,127.16,3.48]
[1766404495726,0.0023422,127.21,127.19,0.05269873]
[1766404495925,0.0023422,127.21,127.19,3.53269873]
[1766404496426,92.52,127.24,127.2,3.48]
[1766404496618,1.35,127.23,127.19,0.05269873]
[1766404497420,0.05656949,127.22,127.19,0.05269873]
[1766404505536,0.05656949,127.22,127.19,7.13149873]
[1766404505838,0.05656949,127.22,127.19,10.50149873]
[1766404508333,0.05656949,127.22,127.19,3.42269873]
[1766404508735,2.86895266,127.22,127.19,0.05269873]
[1766404508939,2.86895266,127.22,127.19,0.00269873]
[1766404509140,2.86895266,127.22,127.17,3.37]
[1766404509437,1.46238317,127.2,127.15,3.37]
[1766404509639,1.3,127.21,127.15,10.451]
[1766404509839,1.3,127.21,127.15,3.37]
[1766404509840,1.46238317,127.2,127.15,3.37]
[1766404510030,0.05767075,127.19,127.16,0.05578037]
[1766404510435,1.3,127.21,127.16,3.42578037]
[1766404510636,110.0194,127.31,127.16,23.66578037]
[1766404510637,3.45,127.31,127.16,23.66578037]
[1766404510842,4.91238317,127.31,127.22,110.0869]
[1766404511132,3.45,127.3,127.22,110.0869]
[1766404511532,0.05659985,127.27,127.25,0.04952402]
[1766404511936,0.05659985,127.27,127.22,7.0769]
[1766404512333,4.91238317,127.25,127.2,92.58]
[1766404512942,0.05893899,127.24,127.21,0.05817364]
[1766404519440,3.50893899,127.24,127.17,7.0797]
[1766404520541,3.50893899,127.24,127.19,0.05354907]
[1766404521444,3.50893899,127.24,127.19,0.00354907]
[1766404521445,3.45,127.22,127.19,0.00354907]
[1766404522532,3.45,127.2,127.15,99.6407]
[1766404522737,4.91238317,127.23,127.13,210.02013653]
[1766404522939,3.45,127.22,127.13,210.02013653]
[1766404523440,3.45,127.22,127.16,0.05048539]
[1766404523647,0.05199394,127.19,127.16,7.13088539]
[1766404528050,3.45,127.22,127.16,7.13088539]
[1766404528740,3.45,127.22,127.17,7.0799]
[1766404528946,0.0591551,127.21,127.17,7.0799]
[1766404531350,3.3391551,127.21,127.16,7.13078539]
[1766404533451,3.3391551,127.21,127.16,0.05048539]
[1766404533854,4.80153827,127.21,127.16,0.05048539]
[1766404534054,3.28,127.2,127.16,0.05048539]
[1766404535751,10.3583,127.2,127.16,0.05048539]
[1766404538247,3.28,127.2,127.16,0.05048539]
[1766404538954,11.82078317,127.2,127.16,0.00048539]
[1766404539756,10.4188,127.19,127.16,0.00048539]
[1766404539963,3.34,127.17,127.1,7.29522585]
[1766404540252,3.34,127.17,127.09,7.29522585]
[1766404540445,3.34,127.17,127.08,101.33760902]
[1766404540855,0.05743077,127.14,127.11,0.05332381]
[1766404541947,3.39743077,127.14,127.11,0.05332381]
[1766404542149,3.39743077,127.14,127.11,0.00332381]
[1766404545060,3.39743077,127.14,127.07,92.6]
[1766404546257,0.05743077,127.14,127.09,0.05814852]
[1766404547666,0.05743077,127.14,127.1,7.0838]
[1766404548866,0.05743077,127.14,127.09,0.05814852]
[1766404549456,0.05743077,127.14,127.09,7.14244852]
[1766404550255,3.39743077,127.14,127.09,0.05814852]
[1766404550457,3.34,127.1,127.04,92.62]
[1766404551359,0.0590306,127.08,127.06,0.04007755]
[1766404553666,0.0590306,127.08,127.06,7.755e-05]
[1766404553970,3.3990306,127.08,127.06,7.755e-05]
[1766404558678,3.3990306,127.08,127.03,92.64]
[1766404559072,3.3990306,127.08,127.01,7.0884]
[1766404559273,3.3990306,127.08,127.01,99.7484]
[1766404559473,3.3990306,127.08,127.02,7.0883]
[1766404560677,3.3990306,127.08,127.03,7.0876]
[1766404560872,3.3990306,127.08,127.01,92.66]
[1766404560873,0.0590306,127.08,127.01,202.9291]
[1766404561082,0.0590306,127.08,127.02,110.2626]
[1766404561375,0.0590306,127.08,127.04,7.0871]
[1766404565069,0.0590306,127.08,127.02,110.2599]
[1766404565269,3.34,127.12,127.03,110.2529]
[1766404565475,2.29017305,127.14,127.03,110.2529]
[1766404565476,3.45,127.14,127.05,110.2341]
[1766404565675,3.45,127.14,127.06,92.66]
[1766404566186,0.05534681,127.11,127.09,0.04982142]
[1766404567071,0.05534681,127.11,127.07,7.0855]
[1766404567280,0.05534681,127.11,127.04,110.2413]
[1766404567582,0.05534681,127.11,127.05,92.66]
[1766404567876,0.05534681,127.11,127.07,7.0853]
[1766404568071,0.05534681,127.11,127.05,92.66]
[1766404568475,0.05534681,127.11,127.09,7.0838]
[1766404568676,3.45,127.15,127.09,0.05796307]
[1766404568871,3.45,127.15,127.09,92.71796307]
[1766404569782,0.05533831,127.13,127.09,92.71796307]
[1766404571582,0.05533831,127.13,127.09,99.80236307]
[1766404572882,0.05533831,127.13,127.1,7.0838]
[1766404574575,0.05533831,127.13,127.09,92.71796307]
[1766404575678,3.50533831,127.13,127.09,92.71796307]
[1766404576072,3.50533831,127.13,127.09,7.14226307]
[1766404576973,0.05533831,127.13,127.09,7.14226307]
[1766404577174,0.05533831,127.13,127.1,7.0838]
[1766404577485,0.05533831,127.13,127.09,0.05796307]
[1766404578284,0.05533831,127.13,127.09,7.14236307]
[1766404591089,0.05533831,127.13,127.09,0.05796307]
[1766404591396,0.05533831,127.13,127.1,7.0838]
[1766404593490,95.93,127.19,127.12,7.0827]
[1766404593886,3.33,127.18,127.12,7.0827]
[1766404594492,0.05869117,127.16,127.14,0.05847784]
[1766404598892,92.6,127.19,127.14,7.13987784]
[1766404599097,3.2,127.2,127.14,7.13987784]
[1766404599889,3.2,127.2,127.15,7.081]
[1766404600089,0.04992117,127.19,127.15,7.081]
[1766404608207,0.04992117,127.19,127.16,7.0804]
[1766404613212,3.24992117,127.19,127.14,0.05847784]
[1766404615909,0.04992117,127.19,127.14,0.05847784]
[1766404617811,0.04992117,127.19,127.16,7.0801]
[1766404618307,0.04992117,127.19,127.14,7.13957784]
[1766404618905,3.24992117,127.19,127.14,7.13957784]
[1766404620610,3.24992117,127.19,127.15,7.081]
[1766404621418,0.04992117,127.19,127.16,7.0804]
[1766404625720,0.04992117,127.19,127.17,7.0798]
[1766404625923,0.04992117,127.19,127.17,7.1377721]
[1766404627322,95.95,127.23,127.18,7.0794]
[1766404628226,95.95,127.23,127.17,0.0579721]
[1766404628426,0.0550891,127.22,127.17,0.0579721]
[1766404630121,3.4050891,127.22,127.17,0.0579721]
[1766404634836,4.86864107,127.22,127.17,0.0579721]
[1766404637935,4.86864107,127.22,127.17,7.1377721]
[1766404641739,0.0550891,127.22,127.18,7.0793]
[1766404642435,0.0550891,127.22,127.17,0.0579721]
[1766404646950,0.0550891,127.22,127.17,7.1377721]
[1766404647350,0.0550891,127.22,127.17,0.0579721]
[1766404648044,3.4050891,127.22,127.17,0.0579721]
[1766404650054,0.0550891,127.22,127.17,0.0579721]
[1766404653652,10.5925891,127.22,127.17,0.0579721]
[1766404653952,3.5150891,127.22,127.17,0.0579721]
[1766404654445,10.5377,127.21,127.17,0.0579721]
[1766404655849,7.0783,127.2,127.17,0.0579721]
[1766404656045,10.2583,127.2,127.17,0.0579721]
[1766404656242,3.18,127.19,127.11,17.16984829]
[1766404656445,3.18,127.18,127.11,109.78984829]
[1766404656851,3.18,127.18,127.11,102.49462244]
[1766404657253,0.04977141,127.16,127.13,0.05997045]
[1766404667761,3.22977141,127.16,127.13,0.05997045]
[1766404684979,3.18,127.15,127.09,7.0839]
[1766404685986,0.05994312,127.13,127.11,0.05282441]
[1766404706305,3.3,127.16,127.11,0.05282441]
[1766404706605,3.3,127.16,127.09,7.29522585]
[1766404706817,3.3,127.16,127.09,92.66]
[1766404707301,3.3,127.16,127.11,0.06001316]
[1766404707302,0.05337369,127.14,127.11,0.06001316]
[1766404707507,3.3,127.13,127.11,1.316e-05]
[1766404718516,3.3,127.13,127.07,107.04072585]
[1766404719010,3.3,127.12,127.07,92.66]
[1766404719411,3.3,127.12,127.08,0.05985097]
[1766404719612,0.05706832,127.11,127.08,0.05985097]
[1766404721111,3.35706832,127.11,127.08,0.05985097]
[1766404732822,0.05706832,127.11,127.08,0.05985097]
[1766404733424,3.35706832,127.11,127.08,0.05985097]
[1766404734723,3.35706832,127.11,127.08,7.14465097]
[1766404735222,0.05706832,127.11,127.08,7.14465097]
[1766404738229,3.35706832,127.11,127.08,0.05985097]
[1766404741529,3.35706832,127.11,127.04,95.48892034]
[1766404741934,4.82251785,127.11,127.04,95.48892034]
[1766404742133,4.82251785,127.11,127.05,7.0866]
[1766404742134,3.3,127.1,127.05,7.0866]
[1766404742436,3.3,127.1,127.06,0.05064309]
[1766404743937,3.3,127.1,127.06,0.00064309]
[1766404755133,3.52,127.08,127.06,0.00064309]
[1766404755332,3.57654556,127.08,127.06,0.00064309]
[1766404765550,3.57654556,127.08,127.02,78.77522585]
[1766404765848,1.46544953,127.06,126.99,3.3]
[1766404766039,1.46544953,127.08,126.99,3.3]
[1766404766649,0.05671048,127.05,127.01,7.0887]
[1766404767348,0.05671048,127.05,126.99,10.3895]
[1766404768049,0.05671048,127.05,127.0,7.0893]
[1766404772153,0.05671048,127.05,127.01,10.3887]
[1766404779761,0.05671048,127.05,127.01,3.3]
[1766404786060,0.05671048,127.05,126.99,3.37]
[1766404787254,0.05671048,127.05,126.99,10.4599]
[1766404787255,7.14341048,127.05,126.99,10.4599]
[1766404787956,1.46544953,127.04,126.99,3.37]
[1766404788162,0.05671048,127.05,126.99,3.37]
[1766404788163,1.52216001,127.05,126.99,3.37]
[1766404789564,8.60926001,127.05,126.99,10.4599]
[1766404796266,8.60926001,127.05,127.0,3.37]
[1766404797367,7.0872,127.04,127.0,3.37]
[1766404799675,8.55324953,127.03,126.97,3.37]
[1766404799876,0.05025957,127.01,126.97,3.37]
[1766404800368,0.00025957,127.01,126.98,3.37]
[1766404801175,1.46544953,127.05,126.98,3.37]
[1766404801978,7.0866,127.05,126.99,3.37]
[1766404802162,0.05713396,127.03,127.01,0.05025957]
[1766404802568,2.29208852,127.07,127.01,3.42025957]
[1766404802777,92.72,127.08,127.01,3.42025957]
[1766404802969,92.72,127.08,127.01,3.37]
[1766404803668,0.0529075,127.06,127.03,0.05237982]
[1766404805276,0.0529075,127.06,127.03,3.42237982]
[1766404806061,0.0029075,127.06,127.03,10.50987982]
[1766404806270,0.0029075,127.06,127.03,3.42237982]
[1766404808575,0.0029075,127.06,127.03,10.50987982]
[1766404808784,92.72,127.11,127.04,3.48]
[1766404809471,2.29208852,127.13,127.07,3.48]
[1766404809782,0.05303188,127.11,127.09,0.0561438]
[1766404815380,2.29208852,127.15,127.09,3.5361438]
[1766404816474,0.05242855,127.13,127.09,3.5361438]
[1766404826384,2.34451707,127.13,127.09,3.5361438]
[1766404826581,2.34451707,127.13,127.09,0.0561438]
[1766404826991,0.05242855,127.13,127.09,3.5361438]
[1766404829188,2.34451707,127.13,127.09,0.0561438]
[1766404832187,2.29208852,127.11,127.04,3.48]
[1766404832387,2.29208852,127.09,127.04,3.48]
[1766404832592,2.29208852,127.07,127.02,3.48]
[1766404833293,0.05525732,127.06,127.03,0.05687209]
[1766404833488,0.05525732,127.06,127.02,3.48]
[1766404834388,0.05525732,127.06,127.03,3.53971433]
[1766404837693,9.37668852,127.09,127.03,3.53971433]
[1766404838701,0.05393175,127.07,127.03,3.53971433]
[1766404838995,2.34602027,127.07,127.03,0.05971433]
[1766404840585,9.43162027,127.07,127.03,0.05971433]
[1766404841798,9.43162027,127.07,127.03,3.47971433]
[1766404842497,7.13953175,127.07,127.03,3.47971433]
[1766404843898,0.05393175,127.07,127.03,3.47971433]
[1766404845705,0.00393175,127.07,127.04,3.42]
[1766404846406,2.29208852,127.09,127.04,3.42]
[1766404846608,7.0838,127.11,127.04,3.42]
[1766404846609,9.37588852,127.11,127.04,3.42]
[1766404847005,7.0839,127.1,127.04,3.42]
[1766404847398,0.05642588,127.08,127.06,0.05629555]
[1766404849105,7.0833,127.11,127.06,3.47629555]
[1766404849999,0.05841651,127.1,127.06,3.47629555]
[1766404854502,7.14231651,127.1,127.06,0.05629555]
[1766404855514,7.0844,127.09,127.04,3.42]
[1766404856515,7.0844,127.09,127.05,0.05315734]
[1766404858422,7.14221651,127.1,127.05,0.05315734]
[1766404858716,7.14221651,127.1,127.05,3.47315734]
[1766404862928,7.14221651,127.1,127.05,0.05315734]
[1766404864126,1.46597478,127.09,127.05,0.05315734]
[1766404864823,8.55047478,127.09,127.05,0.05315734]
[1766404866128,8.60819129,127.1,127.05,3.44315734]
[1766404871931,7.0845,127.09,127.05,3.44315734]
[1766404872132,1.46597478,127.08,127.05,0.05315734]
[1766404872321,1.46597478,127.06,127.01,3.39]
[1766404873336,0.05484477,127.05,127.02,0.05086004]
[1766404874434,0.00484477,127.05,127.02,3.44086004]
[1766404874635,119.95772574,127.15,127.02,3.44086004]
[1766404874636,92.7,127.09,127.02,3.44086004]
[1766404874927,94.16597478,127.09,127.02,3.39]
[1766404875733,0.05087419,127.07,127.04,0.05277562]
[1766404877237,0.00087419,127.07,127.04,3.44277562]
[1766404881153,0.00087419,127.07,127.04,10.52997562]
[1766404887854,1.46597478,127.11,127.05,3.39]
[1766404888854,1.46597478,127.11,127.07,0.05055132]
[1766404889160,0.05952962,127.09,127.07,0.05055132]
[1766404897858,1.5255044,127.09,127.07,0.05055132]
[1766404898460,1.5255044,127.09,127.05,3.39]
[1766404899568,1.5255044,127.09,127.06,0.04969803]
[1766404902868,0.05952962,127.09,127.06,0.04969803]
[1766404907174,0.05952962,127.09,127.06,3.53969803]
[1766404908577,0.05952962,127.09,127.06,0.04969803]
[1766404911076,1.46597478,127.07,127.01,14.36368139]
[1766404911370,1.46597478,127.03,127.0,3.49]
[1766404912171,1.52638523,127.03,127.0,3.54642005]
[1766404917977,0.06041045,127.03,127.0,3.54642005]
[1766404919981,1.52638523,127.03,127.0,0.05642005]
[1766404921990,1.52638523,127.03,126.97,3.49]
[1766404922981,1.52638523,127.03,126.99,0.05444538]
[1766404923582,1.52638523,127.03,126.99,3.54444538]
[1766404923881,0.00041045,127.03,126.99,3.54444538]
[1766404924284,0.00041045,127.03,126.99,10.63414538]
[1766404924485,0.00041045,127.03,127.0,3.49]
[1766404927191,92.7,127.07,127.01,3.28]
[1766404928193,0.05344467,127.05,127.03,0.05321016]
[1766404929288,0.05344467,127.05,127.03,3.33321016]
[1766404929289,0.00344467,127.05,127.03,3.33321016]
[1766404935495,2.29147472,127.1,127.04,3.28]
[1766404936510,0.04997949,127.08,127.06,0.05901535]
[1766404936699,0.04997949,127.08,127.04,3.28]
[1766404937797,0.04997949,127.08,127.05,0.05320974]
[1766404941605,9.42655421,127.08,127.02,3.28]
[1766404942507,9.42655421,127.08,127.04,0.05817526]
[1766404943201,7.0856,127.07,127.02,3.28]
[1766404943902,2.29147472,127.06,127.0,3.28]
[1766404944391,0.05303789,127.04,127.02,0.04898341]
[1766404945197,0.00303789,127.04,127.02,0.04898341]
[1766404953108,0.00303789,127.04,126.99,3.28]
[1766404954012,0.00303789,127.04,127.0,3.33]
[1766404954814,9.38181261,127.04,126.98,10.3705]
[1766404955215,9.38181261,127.04,126.98,3.28]
[1766404956007,7.0877,127.03,126.98,3.28]
[1766404956411,2.29147472,127.0,126.96,3.31]
[1766404956617,0.05881594,126.99,126.96,3.31]
[1766404958421,2.29147472,127.02,126.96,3.31]
[1766404958721,2.29147472,127.04,126.98,3.34]
[1766404959617,0.05680454,127.02,127.0,0.05489557]
[1766404963926,0.05680454,127.02,126.99,3.34]
[1766404965119,2.29147472,127.04,126.99,3.39698675]
[1766404966225,0.05792756,127.03,126.99,3.39698675]
[1766404977245,0.05792756,127.03,126.99,0.05698675]
[1766404980349,0.05792756,127.03,126.99,3.39698675]
[1766404981652,0.05792756,127.03,126.97,7.091]
[1766404982150,0.05792756,127.03,126.94,117.60488139]
[1766404982347,2.29147472,127.04,126.95,117.59428139]
[1766404982541,2.29147472,127.06,126.97,110.3056]
[1766404982746,0.00277439,127.03,127.0,0.05373816]
[1766404982946,2.29147472,127.08,126.98,7.27518139]
[1766404983451,7.0856,127.07,126.99,7.0899]
[1766404983655,7.0856,127.07,127.0,3.34]
[1766404983843,7.0856,127.07,127.02,3.39373816]
[1766404985048,0.05539085,127.06,127.02,3.39373816]
[1766404987157,2.29147472,127.08,127.02,3.39373816]
[1766404988062,92.76,127.09,127.02,3.39373816]
[1766404988063,0.05691914,127.06,127.02,3.39373816]
[1766404989857,1.46637973,127.09,127.02,3.39373816]
[1766404990662,0.00039946,127.07,127.02,3.39373816]
[1766404991362,0.00039946,127.07,127.05,3.41]
[1766404991754,0.00039946,127.07,127.05,3.46857666]
[1766404997964,1.46637973,127.06,126.99,117.55998139]
[1766404998161,1.46637973,127.06,126.99,210.33998139]
[1766404998465,1.46637973,127.06,127.01,7.0888]
[1766404998870,0.05628543,127.05,127.02,0.05628305]
[1766405000365,0.05628543,127.05,127.02,3.46628305]
[1766405001868,1.46637973,127.04,127.0,3.48]
[1766405002962,1.46637973,127.04,127.01,0.0584226]
[1766405003363,1.46637973,127.02,126.96,9.92448529]
[1766405003672,1.46637973,127.0,126.94,7.27518139]
[1766405003872,1.46637973,127.0,126.93,92.78]
[1766405004070,1.46637973,127.0,126.94,7.0923]
[1766405004368,1.46637973,127.0,126.96,0.05349034]
[1766405005062,10.5079,127.03,126.96,0.05349034]
[1766405005063,1.46637973,127.03,126.96,0.05349034]
[1766405005470,0.00402746,127.01,126.97,3.48]
[1766405005766,0.00402746,127.01,126.97,10.5708]
[1766405005967,0.00402746,127.01,126.97,3.48]
[1766405006363,1.46637973,127.06,126.99,3.48]
[1766405006566,1.46637973,127.06,127.01,3.48]
[1766405007271,0.05355779,127.05,127.02,0.05712953]
[1766405007866,0.00355779,127.05,127.02,3.53712953]
[1766405011069,1.46993752,127.05,127.02,3.53712953]
[1766405011373,1.46993752,127.05,127.02,0.05712953]
[1766405011574,1.46993752,127.05,127.0,3.48]
[1766405012676,1.46993752,127.05,127.01,0.05097072]
[1766405013260,1.46637973,127.03,126.98,3.48]
[1766405014281,0.05113833,127.02,126.99,0.05147327]
[1766405015287,0.00113833,127.02,126.99,3.53147327]
[1766405019878,1.46637973,127.05,126.99,3.53147327]
[1766405020071,1.46637973,127.06,127.0,3.37]
[1766405020479,1.46637973,127.06,127.01,3.37]
[1766405020981,0.05837395,127.05,127.02,3.42904895]
[1766405021678,10.3048,127.09,127.02,3.42904895]
[1766405021679,1.46637973,127.08,127.02,3.42904895]
[1766405022074,1.46637973,127.08,127.03,2.98]
[1766405022571,7.0837,127.11,127.03,10.0677]
[1766405022782,0.04975547,127.08,127.06,0.05217574]
[1766405023976,1.46637973,127.11,127.06,2.98217574]
[1766405024883,0.05517435,127.1,127.06,10.06807574]
[1766405026477,0.05517435,127.1,127.06,2.98217574]
[1766405036790,0.05517435,127.1,127.06,10.06817574]
[1766405036993,0.05517435,127.1,127.07,2.93]
[1766405038288,1.46637973,127.11,127.07,2.93]
[1766405038489,92.74,127.12,127.07,2.93]
[1766405039296,0.06017832,127.11,127.07,2.93]
[1766405040197,0.06017832,127.11,127.07,10.0155]
[1766405042006,0.06017832,127.11,127.08,2.87]
[1766405044298,0.00017832,127.11,127.09,2.81]
[1766405045202,0.00017832,127.11,127.09,2.86048997]
[1766405045601,0.00017832,127.11,127.09,9.94488997]
[1766405045795,0.00017832,127.11,127.09,0.05048997]
[1766405046104,1.46655805,127.11,127.07,9.8955]
[1766405046298,1.46655805,127.11,127.07,2.81]
[1766405047095,1.46637973,127.09,127.05,2.81]
[1766405047291,1.46637973,127.09,127.06,0.0597931]
[1766405047500,0.05416534,127.08,127.06,0.0597931]
[1766405049198,0.00416534,127.08,127.06,0.0597931]
[1766405050008,0.00416534,127.08,127.06,2.8197931]
[1766405050201,0.00416534,127.08,127.07,2.76]
[1766405051704,0.00416534,127.08,127.07,9.8455]
[1766405064707,0.00416534,127.08,127.06,0.0597931]
[1766405065302,0.00416534,127.08,127.06,2.8197931]
[1766405066814,0.00416534,127.08,127.07,9.8455]
[1766405070623,3.3,127.17,127.09,2.76]
[1766405070929,5.590285,127.17,127.1,95.5]
[1766405071127,3.3,127.16,127.1,95.5]
[1766405071730,0.05897311,127.14,127.12,0.05864559]